Cogmind - Beta 15 @@@ ROGUE MODE // 2025.07.06 @ 19:04:32 Player: MirenBlacksword Result: Destroyed by G-67 Veteran with Plasma Rifle Performance ------------- Evolutions (7) 3500 Regions Visited (11) 2200 Robots Destroyed (88) 440 Value Destroyed (2978) 2978 Prototype IDs (4) 80 Alien Tech Used (0) 0 Bonus (-165) -165 TOTAL SCORE: 9033 Bonus ------- Follower Combat Kills 68 Friendly Fire -233 Cogmind --------- Core Integrity 0/1300 Matter 278/300 Energy 93/100 System Corruption 10% Temperature Cool (0) Movement Core (50) Location -3/Research Parts ------- > --- POWER (2) -------- (None) > --- PROPULSION (5) --- (None) > --- UTILITY (10) ----- Advanced Visual Processing Unit Advanced Signal Interpreter > --- WEAPON (4) ------- (None) > --- INVENTORY (5) ---- Angular Momentum Engine Advanced Component Analysis Suite Improved Field Recycling Unit (0) Peak State ------------ > --- POWER ------------ Backup Power III Angular Momentum Engine > --- PROPULSION ------- VTOL Module VTOL Module Improved Cesium-ion Thruster Field Propulsion Drive > --- UTILITY ---------- Advanced Weight Redist. System Advanced Visual Processing Unit Advanced Sensor Array Advanced Signal Interpreter Advanced Transmission Jammer ECM Suite Improved Reaction Control System Improved Cloaking Device Hacking Suite > --- WEAPON ----------- Autogun Autogun Mini Grenade Launcher Improved Datajack > --- INVENTORY -------- Light Nuclear Core Advanced Component Analysis Suite Improved Field Recycling Unit Great Maul [Rating: 72] Favorites ----------- Power Deuterium Engine Engine Deuterium Engine Power Core Light Nuclear Core Propulsion Light Treads Treads Light Treads Leg Aluminum Leg Flight Unit Improved Cesium-ion Thruster Utility Large Storage Unit Device ECM Suite Storage Large Storage Unit Processor Advanced Signal Interpreter Hackware Hacking Suite Protection Medium Armor Plating Weapon Flak Cannon Energy Gun Beam Rifle Ballistic Gun Light Assault Rifle Ballistic Cannon Flak Cannon Launcher Mini Grenade Launcher Impact Weapon Great Maul Special Melee Weapon Improved Datajack Build | -11 -10 -9 -9 -8 -7 -7 -7 -6 -5 -4 -3 ------- Run | Yrd Mat Mat Min Mat Fac Was Fac Fac Fac Fac Res Slots Evolved 14 | . . 2 . 2 2 . . 2 2 2 2 Power 1 | . . . . . 1 . . . . . . Propulsion 3 | . . 2 . . . . . . 1 . . Utility 8 | . . . . 1 1 . . 2 . 2 2 Weapon 2 | . . . . 1 . . . . 1 . . Parts Attached 82 | 6 . 24 . 9 10 2 4 6 4 12 5 Power 11 | 1 . 3 . 1 1 . 2 . . 3 . Engine 9 | 1 . 3 . 1 1 . 1 . . 2 . Core 2 | . . . . . . . 1 . . 1 . Reactor . | . . . . . . . . . . . . Propulsion 25 | 2 . 8 . 4 2 2 1 1 1 2 2 Treads 15 | 2 . 7 . 4 2 . . . . . . Leg 1 | . . 1 . . . . . . . . . Wheel . | . . . . . . . . . . . . Hover . | . . . . . . . . . . . . Flight 9 | . . . . . . 2 1 1 1 2 2 Utility 31 | 1 . 9 . 2 4 . . 5 3 4 3 Device 18 | . . 2 . 1 2 . . 3 3 4 3 Storage 2 | 1 . 1 . . . . . . . . . Processor 2 | . . . . . . . . 2 . . . Hackware 1 | . . . . 1 . . . . . . . Protection 8 | . . 6 . . 2 . . . . . . Artifact . | . . . . . . . . . . . . Weapon 15 | 2 . 4 . 2 3 . 1 . . 3 . Energy Gun 2 | 1 . 1 . . . . . . . . . Energy Cannon . | . . . . . . . . . . . . Ballistic Gun 3 | 1 . . . . . . . . . 2 . Ballistic Cannon 4 | . . 2 . 1 1 . . . . . . Launcher 2 | . . . . . 2 . . . . . . Special Weapon . | . . . . . . . . . . . . Impact Weapon 2 | . . 1 . . . . 1 . . . . Slashing Weapon . | . . . . . . . . . . . . Piercing Weapon . | . . . . . . . . . . . . Special Melee Weapon 2 | . . . . 1 . . . . . 1 . Unidentified Prototypes 1 | . . . . . . . 1 . . . . Parts Lost 38 | . . 1 . 1 5 . 4 4 . 1 22 Power 6 | . . . . . . . 1 2 . 1 2 Propulsion 14 | . . . . 1 3 . 3 1 . . 6 Utility 12 | . . 1 . . 1 . . 1 . . 9 Weapon 6 | . . . . . 1 . . . . . 5 Highest Loss Streak 15 | . . 1 . 1 3 . 4 3 . 1 15 To Critical Strikes . | . . . . . . . . . . . . Average Backups 12 | 5 7 14 15 14 14 6 4 4 5 4 4 Power . | . 1 1 1 . . . . . 1 1 1 Propulsion 2 | 3 3 3 2 2 2 2 1 . . . . Utility 5 | . . 7 8 7 7 1 1 2 2 1 1 Weapon 2 | . 1 2 3 3 3 2 1 1 1 1 . Tool/Special . | . . . . . . . . . . . . Unused Backups 29 | . 2 10 . 5 2 4 1 2 . 2 1 Power 2 | . . 2 . . . . . . . . . Propulsion 6 | . 2 1 . 2 . . 1 . . . . Utility 13 | . . 3 . 1 2 3 . 2 . 1 1 Weapon 5 | . . 3 . 1 . 1 . . . . . Tool/Special 3 | . . 1 . 1 . . . . . 1 . Average Slot Usage (%) 89 | . 85 99 100 98 98 39 39 41 54 72 77 Engine 10 | . 14 11 11 9 14 7 5 2 5 9 7 Treads 30 | . 28 43 44 35 29 . . . . . . Flight 2 | . . . . . . 13 16 10 8 12 17 Device 5 | . . 3 . . 6 . . 11 15 24 26 Storage 7 | . 14 11 11 9 7 . . . . . . Processor 1 | . . . . . . . . 1 11 10 9 Hackware 3 | . . . . 7 7 7 7 6 5 5 2 Protection 6 | . . 7 11 9 6 . . . . . . Energy Gun 1 | . 14 6 . . . . . . . . . Ballistic Gun 2 | . 14 6 . . . . . . . 2 6 Ballistic Cannon 14 | . . 9 22 25 19 . . . . . . Launcher 1 | . . . . . 2 7 6 3 5 5 2 Peak Build Rating 72 | 6 7 21 21 27 38 30 20 31 44 64 72 Average Rating 25 | 5 6 16 20 25 35 15 14 21 38 58 64 On Entrance 22 | . 6 7 20 21 26 27 15 10 24 44 64 Naked Turns . | . . . . . . . . . . . . Heaviest Build 65 | 13 13 49 48 56 65 17 14 23 10 28 30 Greatest Support 94 | 40 40 86 86 86 94 10 14 11 13 30 35 Greatest Overweight (x) 3 | 3 . . . . 2 1 . 3 . . 1 Average Overweight (x) . | . . . . . . . . . . . . Largest Inventory Capacity 15 | 8 8 15 15 15 15 15 5 5 5 5 5 Average Capacity 12 | 7 8 14 15 15 15 5 5 5 5 5 5 Most Carried 15 | 6 8 15 15 15 15 14 5 5 5 5 5 Average Carried 12 | 5 7 14 15 14 14 5 4 4 5 4 4 Final Capacity 15 | 8 8 15 15 15 15 5 5 5 5 5 5 Final Carried 15 | 6 8 15 15 15 14 5 4 5 5 5 3 Class Distribution -------------------- 39% | Mutant 21% | Tank 11% | Scavenger-Mutant 7% | Gunner 6% | Infiltrator-Mutant 4% | Scavenger-Gunner 4% | Infiltrator-Sprinter Dominant Class ---------------- Mutant | -10/Materials Scavenger-Mutant | -9/Materials Mutant | -9/Mines Tank | -8/Materials Gunner | -7/Factory Sprinter | -7/Waste Sprinter | -7/Factory Infiltrator-Sprinter | -6/Factory Infiltrator-Mutant | -5/Factory Infiltrator-Mutant | -4/Factory Infiltrator-Scout | -3/Research Resources | -11 -10 -9 -9 -8 -7 -7 -7 -6 -5 -4 -3 ----------- Run | Yrd Mat Mat Min Mat Fac Was Fac Fac Fac Fac Res Matter Collected 3261 | 218 46 438 596 688 753 . 93 78 178 100 73 Remotely . | . . . . . . . . . . . . Salvage Created 2085 | . 30 768 74 576 561 . 18 . . 22 36 Parts 146 | . 3 56 5 42 28 . 1 . . 9 2 Haulers Intercepted . | . . . . . . . . . . . . Recyclers Shooed 1 | . . . . 1 . . . . . . . Parts Field Recycled 34 | . . 21 . . . . . 13 . . . Retrieved Matter 494 | . . 199 . . . . . 295 . . . Parts Self-Destructed . | . . . . . . . . . . . . Prevented . | . . . . . . . . . . . . Kills | -11 -10 -9 -9 -8 -7 -7 -7 -6 -5 -4 -3 ------- Run | Yrd Mat Mat Min Mat Fac Was Fac Fac Fac Fac Res Combat Hostiles Destroyed 71 | . 1 23 3 16 21 . 1 1 . 4 1 Melee 2 | . . 1 . . 1 . . . . . . Guns 12 | . 1 10 . . . . . . . . 1 Cannons 44 | . . 11 3 15 15 . . . . . . AOE 12 | . . . . 1 5 . 1 1 . 4 . Classes Destroyed 10 | . 1 5 . 3 1 . . . . . . Worker 4 | . . . . 3 1 . . . . . . Builder 5 | . . . . 2 3 . . . . . . Operator 1 | . . 1 . . . . . . . . . Watcher 6 | . . 2 . 2 2 . . . . . . Swarmer 16 | . . 3 . 5 3 . . . . 4 1 Grunt 32 | . 1 12 3 5 10 . 1 . . . . Brawler 4 | . . 2 . . 2 . . . . . . Sentry 15 | . . 6 . 5 4 . . . . . . Hunter 1 | . . . . 1 . . . . . . . Programmer 3 | . . . . . 2 . . 1 . . . Thug 1 | . . . . 1 . . . . . . . Best Kill Streak 8 | . 1 4 3 8 3 . 1 1 . 4 1 Combat Bots Only 6 | . 1 4 3 6 3 . 1 1 . 4 1 Max Kills in Single Turn 3 | . 1 1 1 2 2 . 1 1 . 3 1 Gunslinging . | . . . . . . . . . . . . Exploded 3 | . . . . 1 2 . 1 1 . 3 . Melee 1 | . . 1 . . 1 . . . . . . Uniques/NPCs Destroyed . | . . . . . . . . . . . . Combat | -11 -10 -9 -9 -8 -7 -7 -7 -6 -5 -4 -3 -------- Run | Yrd Mat Mat Min Mat Fac Was Fac Fac Fac Fac Res Hostile Shots Fired 796 | . 3 126 14 45 292 . 24 28 . 22 242 Missed 346 | . . 26 3 12 132 . 8 11 . 17 137 Hits 450 | . 3 100 11 33 160 . 16 17 . 5 105 Melee 4 | . . 2 . . 2 . . . . . . Projectile 446 | . 3 98 11 33 158 . 16 17 . 5 105 Critical Strikes 14 | . . 5 . . 3 . . 1 . . 5 Part Disruptions 1 | . . . . . . . . 1 . . . Damage Taken 6843 | . 34 1269 145 486 1760 . 278 300 . 103 2468 Core 1953 | . . 166 . 22 177 . 125 147 . 13 1303 Absorbed by Shields . | . . . . . . . . . . . . Regen/Repaired (Parts) 216 | . . . . 216 . . . . . . . Core Remaining (%) 86 | 100 100 . 58 96 . . 56 82 100 98 . Volleys Fired 197 | . 4 77 7 35 50 . 4 11 . 4 5 Largest 3 | . 2 2 2 3 3 . 1 1 . 1 2 Hottest 111 | . 70 76 74 111 111 . 30 30 . 30 46 Shots Fired 433 | . 6 154 14 105 125 . 4 11 . 4 10 Gun 86 | . 6 70 . . . . . . . . 10 Cannon 318 | . . 84 14 105 115 . . . . . . Launcher 29 | . . . . . 10 . 4 11 . 4 . Special . | . . . . . . . . . . . . Kinetic 367 | . 4 119 14 105 115 . . . . . 10 Thermal 37 | . 2 35 . . . . . . . . . Explosive 29 | . . . . . 10 . 4 11 . 4 . Electromagnetic . | . . . . . . . . . . . . Robot Hit Streak 13 | . 2 13 6 10 9 . 1 2 . . 4 Robot Miss Streak 24 | . 1 24 4 22 9 . 3 1 . . 2 Penetration Max . | . . . . . . . . . . . . Secondary Targets 1 | . . 1 . . . . . . . . . Max Gunslinging Chain 1 | . . 1 . . . . . . . . . Shots Hit Robots 326 | . 4 125 12 79 91 . 2 6 . 1 6 Core Hits 290 | . 2 66 12 90 104 . 3 4 . 6 3 Critical Kills . | . . . . . . . . . . . . Critical Parts Destroyed 1 | . . 1 . . . . . . . . . Critical Strikes 2 | . . 2 . . . . . . . . . Burn 1 | . . 1 . . . . . . . . . Smash 1 | . . 1 . . . . . . . . . Melee Attacks 14 | . . 9 . . . . 1 . . 1 3 Impact 13 | . . 9 . . . . 1 . . . 3 Slashing . | . . . . . . . . . . . . Piercing . | . . . . . . . . . . . . Sneak Attacks 1 | . . . . . . . . . . 1 . Combat Hostiles . | . . . . . . . . . . . . Follow-up Attacks . | . . . . . . . . . . . . Damage Inflicted 6881 | . 44 1563 271 1551 2490 . 326 246 . 305 85 Guns 641 | . 44 512 . . . . . . . . 85 Cannons 4115 | . . 891 223 1236 1765 . . . . . . Explosions 1794 | . . . . 307 671 . 265 246 . 305 . Melee 217 | . . 156 . . . . 61 . . . . Ramming 114 | . . 4 48 8 54 . . . . . . Kinetic 4395 | . 20 1066 223 1236 1765 . . . . . 85 Thermal 668 | . 24 337 . 307 . . . . . . . Explosive 1487 | . . . . . 671 . 265 246 . 305 . Electromagnetic . | . . . . . . . . . . . . Impact 217 | . . 156 . . . . 61 . . . . Slashing . | . . . . . . . . . . . . Piercing . | . . . . . . . . . . . . Highest Corruption 10 | . . . . . . . . . . . 10 Average Corruption 6 | . . . . . . . . . . . 6 Corruption Purged . | . . . . . . . . . . . . Corruption Blocked . | . . . . . . . . . . . . Effects 1 | . . . . . . . . . . . 1 Heat Flow Errors 1 | . . . . . . . . . . . 1 Overload Shots . | . . . . . . . . . . . . Overflow Damage 88 | . . 12 . 51 8 . 15 . . 2 . Projectiles 5 | . . . . 3 2 . . . . . . Explosions 71 | . . . . 48 6 . 15 . . 2 . Melee 12 | . . 12 . . . . . . . . . Knockbacks 84 | . . 30 2 21 30 . 1 . . . . Impact 2 | . . . . 1 . . 1 . . . . Kinetic 76 | . . 29 2 18 27 . . . . . . Secondary 6 | . . 1 . 2 3 . . . . . . Self-Inflicted Damage 253 | . . . . 106 43 . 27 45 . 32 . Shots 6 | . . . . 1 2 . 1 1 . 1 . Rammed 15 | . . 1 5 1 8 . . . . . . Targets Rammed 16 | . . 1 5 1 9 . . . . . . Kicked . | . . . . . . . . . . . . Crushed 1 | . . . . . 1 . . . . . . Highest Temperature 409 | . 52 236 126 409 366 . . . . . 308 Average Temperature 85 | . 28 64 54 92 119 . . . . . 135 Received Heat Transfer 1672 | . 18 501 81 90 471 . 126 . . . 385 Effects 5 | . . . . 3 2 . . . . . . Shutdowns 3 | . . . . 2 1 . . . . . . Short Circuit 1 | . . . . . 1 . . . . . . Damage (minor) 1 | . . . . 1 . . . . . . . Siege Activations . | . . . . . . . . . . . . Martial Activations . | . . . . . . . . . . . . Shielding Activations . | . . . . . . . . . . . . Robots Disrupted . | . . . . . . . . . . . . Combat Hostiles . | . . . . . . . . . . . . Robots Corrupted 1 | . . 1 . . . . . . . . . Combat Hostiles 1 | . . 1 . . . . . . . . . Parts Fried 3 | . . 3 . . . . . . . . . Impact Corruptions 1 | . . 1 . . . . . . . . . Robots Melted . | . . . . . . . . . . . . Combat Hostiles . | . . . . . . . . . . . . Parts Melted 2 | . . 2 . . . . . . . . . Heat Transferred 1186 | . 74 962 . 150 . . . . . . . Parts Sabotaged . | . . . . . . . . . . . . Parts Stolen . | . . . . . . . . . . . . Parts Stripped . | . . . . . . . . . . . . Power Chain Reactions . | . . . . . . . . . . . . Alert | -11 -10 -9 -9 -8 -7 -7 -7 -6 -5 -4 -3 ------- Run | Yrd Mat Mat Min Mat Fac Was Fac Fac Fac Fac Res Maximum Alert Level 1 | . . . . 1 1 . . . . . . Low Security (%) 91 | 100 100 100 100 57 99 100 100 100 100 100 100 Level 1 8 | . . . . 42 . . . . . . . Level 2 . | . . . . . . . . . . . . Level 3 . | . . . . . . . . . . . . Level 4 . | . . . . . . . . . . . . Level 5 . | . . . . . . . . . . . . High Security . | . . . . . . . . . . . . Max Security . | . . . . . . . . . . . . Peak Influence 305 | . 30 160 62 305 217 65 85 55 14 111 75 Initial 70 | . . 8 25 . 70 65 . 36 6 . 47 Average 61 | . 1 61 6 170 52 27 26 9 1 32 18 Influence Increases 2711 | . 30 642 70 585 718 . 145 134 18 161 208 Destroy 0b10 Robot/C 1460 | . 20 460 60 360 420 . 20 20 . 80 20 Destroy 0b10 Robot/NC 80 | . . 15 . 35 30 . . . . . . Destroy Leader 382 | . 10 134 10 104 104 . . 10 . 10 . Allied During Kill 11 | . . . . 11 . . . . . . . Trap Triggered on 0b10 10 | . . . . . 10 . . . . . . Successful Hack 144 | . . 3 . 13 35 . 16 44 18 11 4 Disable Machine 75 | . . . . 15 15 . 15 30 . . . Destroy Structure 144 | . . . . 17 59 . 19 15 . 30 4 Partial Spotted 45 | . . . . . 15 . . 15 . 15 . Lose Combat Pursuer 360 | . . 30 . 30 30 . 75 . . 15 180 Influence Decreases 2696 | . 10 597 135 429 687 187 70 195 32 70 284 Entered New Map 351 | . . 12 40 . 86 122 . 39 8 . 44 Time Decay 1662 | . 10 481 95 419 306 45 30 91 24 60 101 Lost Part 269 | . . 10 . 10 50 . 40 10 . 10 139 Lost Ally 20 | . . . . . . 20 . . . . . Purge Threat 394 | . . 94 . . 245 . . 55 . . . Squads Dispatched 20 | . 1 5 . 2 5 . 2 3 . 2 . Investigation 5 | . 1 3 . . . . 1 . . . . Extermination 4 | . . . . . 2 . . 1 . 1 . Reinforcement 11 | . . 2 . 2 3 . 1 2 . 1 . Assault . | . . . . . . . . . . . . Garrison . | . . . . . . . . . . . . Intercept . | . . . . . . . . . . . . Searches Triggered . | . . . . . . . . . . . . Construction Impeded 3 | . . . . 1 1 . . 1 . . . Haulers Reinforced 1 | . . . . . 1 . . . . . . Active Scanning Responses . | . . . . . . . . . . . . Cargo Convoy Interrupts . | . . . . . . . . . . . . Stealth | -11 -10 -9 -9 -8 -7 -7 -7 -6 -5 -4 -3 --------- Run | Yrd Mat Mat Min Mat Fac Was Fac Fac Fac Fac Res Distress Signals 11 | . . 2 . 4 . . 1 2 . . 2 Communications Jammed 1 | . . . . . . . . 1 . . . Distress Signals 1 | . . . . . . . . 1 . . . Times Spotted 175 | . 3 35 3 25 31 6 13 10 3 9 37 Peak Tracking Total 20 | . 3 6 3 5 6 6 8 9 2 6 20 Tactical Retreats 18 | . . 2 . 2 2 . 2 3 . 2 5 Traps | -11 -10 -9 -9 -8 -7 -7 -7 -6 -5 -4 -3 ------- Run | Yrd Mat Mat Min Mat Fac Was Fac Fac Fac Fac Res Traps Triggered 5 | . 1 2 . . 2 . . . . . . Indirectly . | . . . . . . . . . . . . Trap Hack Attempts 21 | . . . . 10 3 . . . . . 8 Triggered . | . . . . . . . . . . . . Disarmed . | . . . . . . . . . . . . Reprogrammed 4 | . . . . 2 1 . . . . . 1 Reused 1 | . . . . . 1 . . . . . . Traps Extracted . | . . . . . . . . . . . . Installed . | . . . . . . . . . . . . Triggered 1 | . . . . . 1 . . . . . . Machines | -11 -10 -9 -9 -8 -7 -7 -7 -6 -5 -4 -3 ---------- Run | Yrd Mat Mat Min Mat Fac Was Fac Fac Fac Fac Res Machines Disabled 5 | . . . . 1 1 . 1 2 . . . Max in Single Turn 1 | . . . . 1 1 . 1 1 . . . Machines Repaired . | . . . . . . . . . . . . Machines Dismantled . | . . . . . . . . . . . . Machines Sabotaged . | . . . . . . . . . . . . Overloaded Fab Kills . | . . . . . . . . . . . . Hacking | -11 -10 -9 -9 -8 -7 -7 -7 -6 -5 -4 -3 --------- Run | Yrd Mat Mat Min Mat Fac Was Fac Fac Fac Fac Res Machines Accessed 48 | . 1 9 1 5 3 . 5 11 6 4 3 Terminals 34 | . 1 6 . 4 3 . 4 7 5 4 . Fabricators 2 | . . . . . . . . 1 . . 1 Repair Stations 3 | . . . . 1 . . . 1 1 . . Recycling Units 6 | . . 2 . . . . 1 2 . . 1 Scanalyzers 1 | . . 1 . . . . . . . . . Garrison Access 1 | . . . . . . . . . . . 1 Total Hacks 121 | . 1 26 1 23 14 . 11 24 9 9 3 Successful 62 | . . 16 1 15 10 . 3 10 2 3 2 Failed 59 | . 1 10 . 8 4 . 8 14 7 6 1 Catastrophic 15 | . 1 2 . 1 2 . 2 1 4 2 . Database Lockouts . | . . . . . . . . . . . . Manual 17 | . 1 4 . 1 1 . . 2 1 7 . Terminals 83 | . 1 17 . 10 14 . 9 16 7 9 . Fabricators 3 | . . . . . . . . 2 . . 1 Repair Stations 18 | . . . . 13 . . . 3 2 . . Recycling Units 12 | . . 6 . . . . 2 3 . . 1 Scanalyzers 3 | . . 3 . . . . . . . . . Garrison Access 1 | . . . . . . . . . . . 1 Terminal Hacks 37 | . . 8 1 4 10 . 1 9 1 3 . Record 4 | . . 2 . . 1 . . 1 . . . Prototype ID Bank 1 | . . . . . 1 . . . . . . Open Door 1 | . . . 1 . . . . . . . . Open DSF 4 | . . . . . . . . 2 1 1 . Level Access Points 3 | . . . . . . . 1 1 . 1 . Branch Access Points 3 | . . . . 1 . . . 1 . 1 . Emergency Access Points 1 | . . . . . 1 . . . . . . Machine Index 1 | . . . . 1 . . . . . . . Scanalyzer Index 1 | . . . . . . . . 1 . . . Alert Level 4 | . . 2 . . 2 . . . . . . Unreport Threat 5 | . . 1 . . 3 . . 1 . . . Dispatch Records 2 | . . 1 . 1 . . . . . . . Patrol Status 1 | . . . . . . . . 1 . . . Recall Investigation 1 | . . . . . 1 . . . . . . Hauler Manifests 2 | . . 1 . . . . . 1 . . . Zone Layout 3 | . . 1 . 1 1 . . . . . . Fabricator Hacks 1 | . . . . . . . . . . . 1 Build 1 | . . . . . . . . . . . 1 Repair Station Hacks 13 | . . . . 11 . . . 1 1 . . Scan Component 6 | . . . . 6 . . . . . . . Repair 5 | . . . . 5 . . . . . . . Refit 2 | . . . . . . . . 1 1 . . Recycling Unit Hacks 9 | . . 6 . . . . 2 . . . 1 Recycle Component 1 | . . 1 . . . . . . . . . Process 3 | . . 2 . . . . 1 . . . . Report Inventory 1 | . . 1 . . . . . . . . . Retrieve Matter 4 | . . 2 . . . . 1 . . . 1 Scanalyzer 2 | . . 2 . . . . . . . . . Insert Component 1 | . . 1 . . . . . . . . . Analyze 1 | . . 1 . . . . . . . . . Garrison Access Hacks . | . . . . . . . . . . . . Unauthorized Hacks . | . . . . . . . . . . . . Terminals . | . . . . . . . . . . . . Fabricators . | . . . . . . . . . . . . Repair Stations . | . . . . . . . . . . . . Recycling Units . | . . . . . . . . . . . . Scanalyzers . | . . . . . . . . . . . . Garrison Access . | . . . . . . . . . . . . Data Cores Recovered 1 | . . 1 . . . . . . . . . Used . | . . . . . . . . . . . . Hacking Detections 40 | . 1 6 . 5 3 . 4 10 5 4 2 Full Trace Events 2 | . . 1 . . . . 1 . . . . Feedback Events . | . . . . . . . . . . . . Feedback Blocked . | . . . . . . . . . . . . Robot Schematics Acquired . | . . . . . . . . . . . . Robots Built 1 | . . . . . . . . . . . 1 Authchips . | . . . . . . . . . . . . Time 81 | . . . . . . . . . . . 81 Total Robot Build Rating 1 | . . . . . . . . . . . 1 Part Schematics Acquired 1 | . . 1 . . . . . . . . . Parts Built . | . . . . . . . . . . . . Authchips . | . . . . . . . . . . . . Time . | . . . . . . . . . . . . Total Part Build Rating . | . . . . . . . . . . . . Parts Repaired 5 | . . . . 5 . . . . . . . Time 184 | . . . . 184 . . . . . . . Parts Recycled 1 | . . 1 . . . . . . . . . Recycled Matter 449 | . . 438 . . . . 11 . . . . Retrieved Matter 47 | . . 36 . . . . 11 . . . . Retrieved Components . | . . . . . . . . . . . . Parts Scanalyzed 1 | . . 1 . . . . . . . . . Part Schematics Acquired 1 | . . 1 . . . . . . . . . Parts Damaged 1 | . . 1 . . . . . . . . . Bothacking | -11 -10 -9 -9 -8 -7 -7 -7 -6 -5 -4 -3 ------------ Run | Yrd Mat Mat Min Mat Fac Was Fac Fac Fac Fac Res Used RIF Installer . | . . . . . . . . . . . . Robots Hacked 1 | . . . . . . . . . . 1 . Non-combat 1 | . . . . . . . . . . 1 . Combat . | . . . . . . . . . . . . Robot Hacks Applied 1 | . . . . . . . . . . 1 . find_recycling 1 | . . . . . . . . . . 1 . Relay Couplers Released . | . . . . . . . . . . . . Fabnet Peak Effective % . | . . . . . . . . . . . . Robots Rewired . | . . . . . . . . . . . . Allies Hacked . | . . . . . . . . . . . . Hacks Repelled . | . . . . . . . . . . . . Allies | -11 -10 -9 -9 -8 -7 -7 -7 -6 -5 -4 -3 -------- Run | Yrd Mat Mat Min Mat Fac Was Fac Fac Fac Fac Res Total Allies 4 | . . . 2 . . 1 . . . . 1 Largest Group 2 | . . . 2 2 . 1 . . . . 1 Highest-Rated Group 42 | . . . 42 42 . 31 . . . . 10 Highest-Rated Ally 31 | . . . 31 31 . 31 . . . . 10 Total Orders 3 | . . . . . . . . . . . 3 ROAM 2 | . . . . . . . . . . . 2 DROP 1 | . . . . . . . . . . . 1 Ally Attacks 35 | . . . . 22 . 13 . . . . . Total Damage 487 | . . . . 275 . 212 . . . . . Kills 2 | . . . . 2 . . . . . . . Allies Corrupted . | . . . . . . . . . . . . Allies Melted . | . . . . . . . . . . . . Intel | -11 -10 -9 -9 -8 -7 -7 -7 -6 -5 -4 -3 ------- Run | Yrd Mat Mat Min Mat Fac Was Fac Fac Fac Fac Res Active Infowar (turns) 1022 | . . . . . . . . 293 239 200 290 Optics 734 | . . . . . . . . 5 239 200 290 Sensors 187 | . . . . . . . . . . . 187 Cloaking 126 | . . . . . . . . . . 89 37 Jamming 357 | . . . . . . . . 286 4 26 41 ECM 269 | . . . . . . . . 215 3 41 10 Robot Analysis Total . | . . . . . . . . . . . . Derelict Logs Recovered 2 | . . . 2 . . . . . . . . Drone Launches . | . . . . . . . . . . . . Drone Recoveries . | . . . . . . . . . . . . Exploration | -11 -10 -9 -9 -8 -7 -7 -7 -6 -5 -4 -3 ------------- Run | Yrd Mat Mat Min Mat Fac Was Fac Fac Fac Fac Res Turns Passed 7127 | 168 243 1512 1160 1482 1184 132 83 434 239 200 290 Spaces Moved 4756 | 44 144 590 538 526 555 211 177 781 436 366 388 Core 30 | 10 . . . . . . . 4 . . 16 Treads 2387 | 34 144 590 538 526 555 . . . . . . Legs . | . . . . . . . . . . . . Wheels . | . . . . . . . . . . . . Hover . | . . . . . . . . . . . . Flight 2339 | . . . . . . 211 177 777 436 366 372 Fastest Speed 25 | 50 160 160 160 160 160 32 29 32 35 28 25 Average Speed 97 | 144 160 160 160 160 160 32 30 37 35 34 30 Slowest Speed 320 | 200 160 160 160 160 320 112 35 275 37 37 100 Overloaded Moves . | . . . . . . . . . . . . Propulsion Burnouts . | . . . . . . . . . . . . Robots Hopped 51 | . . . . . . . 5 8 9 6 23 Potential Cave-ins . | . . . . . . . . . . . . Cave-ins Triggered 1 | . . . . . . . . . . . 1 Exploration Rate (%) 34 | 4 29 64 73 50 16 99 7 26 17 12 20 Regions Visited 11 Branch Regions 1 Pre-discovered Areas 3 | . . . 3 . . . . . . . . Known Exits Taken 4 | . . . . . . . 1 1 1 1 . Unknown Exits Taken 5 | 1 1 1 1 1 . . . . . . . Scrap Searched . | . . . . . . . . . . . . Spaces Dug 11 | . . . . . . . . . . 8 3 Terrain Destroyed 134 | . . . . 16 62 . 22 15 . 16 3 Melee 3 | . . . . . . . . . . . 3 Projectile 5 | . . . . . 5 . . . . . . AOE 126 | . . . . 16 57 . 22 15 . 16 . Terrain Rammed . | . . . . . . . . . . . . Walls Destroyed . | . . . . . . . . . . . . Machines Disabled . | . . . . . . . . . . . . Actions | -11 -10 -9 -9 -8 -7 -7 -7 -6 -5 -4 -3 --------- Run | Yrd Mat Mat Min Mat Fac Was Fac Fac Fac Fac Res Total 6782 | 146 153 997 823 1091 746 278 194 901 507 426 520 Wait 1580 | 91 . 240 270 479 92 52 9 99 76 42 130 Move 4654 | 43 143 589 537 525 555 210 168 764 420 353 347 Hop 40 | . . . . . . . 3 8 6 6 17 Pick Up 71 | 6 4 27 2 12 7 4 1 6 . 1 1 Fast Attach 38 | 6 . . . 5 3 . 2 4 4 10 4 Attach 23 | . . 4 . 2 4 2 3 4 . 1 3 Detach 6 | . . . . . 1 . 1 2 . 2 . Swap 52 | . . 27 . 9 13 . . . . 2 1 Drop 69 | . 2 23 2 13 9 10 2 3 1 4 . Fire 197 | . 4 77 7 35 50 . 4 11 . 4 5 Melee 14 | . . 9 . . . . 1 . . 1 3 Ram . | . . . . . . . . . . . . Kick . | . . . . . . . . . . . . Crush 16 | . . 1 5 1 9 . . . . . . Escape Stasis 1 | . . . . . . . . . . . 1 Rewire . | . . . . . . . . . . . . Trap 21 | . . . . 10 3 . . . . . 8 Miscellaneous . | . . . . . . . . . . . . Route ------- -11/Scrapyard -10/Materials -9/Materials -9/Mines -8/Materials -7/Factory -7/Waste -7/Factory (discovered 4 exits: *Fac x4) -6/Factory (discovered 6 exits: *Fac x4 / Low x2) -5/Factory -4/Factory (discovered 9 exits: *Res x4 / Upp x2 / Ext x2 / Arm) -3/Research History --------- Turn | Location | Event 16 | -11/Scrapyard | Discovered new exit (range 15) 169 | -11/Scrapyard | Entered Materials 170 | -10/Materials | Met a group of wandering Federalists 274 | -10/Materials | Discovered new exit (range 13) 305 | -10/Materials | Build established: Mutant 412 | -10/Materials | Entered another Materials area 412 | -9/Materials | Evolved 2 slots: Propulsion x2 756 | -9/Materials | Build established: Scavenger-Mutant 1566 | -9/Materials | Build established: Mutant 1644 | -9/Materials | Discovered new exit (range 16) 1924 | -9/Materials | Entered Mines 1925 | -9/Mines | Learned location of Storage (-7) 1965 | -9/Mines | Found the Drone Emporium 2694 | -9/Mines | Discovered new exit (range 3) 2850 | -9/Mines | Learned location of Zion (-6) 3084 | -9/Mines | Entered Materials 3084 | -8/Materials | Accompanied by 2 allies 3084 | -8/Materials | Evolved 2 slots: Utility x1, Weapon x1 3089 | -8/Materials | Led the pair of lost Derelicts to an unsafe place 3376 | -8/Materials | Build established: Tank 4351 | -8/Materials | Discovered new exit (range 16) 4406 | -8/Materials | Repaired Flak Cannon 4406 | -8/Materials | Repaired Flak Cannon 4438 | -8/Materials | Repaired Imp. Treads 4487 | -8/Materials | Repaired Flak Cannon 4531 | -8/Materials | Repaired Flak Cannon 4566 | -8/Materials | Entered Factory 4566 | -7/Factory | Evolved 2 slots: Power x1, Utility x1 5750 | -7/Factory | Sucked down chute 5750 | -7/Factory | Entered Waste 5751 | -7/Waste | Met a frightened Derelict 5765 | -7/Waste | Spotted C-40 Crusher 5780 | -7/Waste | Lost 3 parts (3n) 5825 | -7/Waste | Spotted C-40 Crusher 5841 | -7/Waste | Spotted C-40 Crusher 5841 | -7/Waste | Spotted C-40 Crusher 5856 | -7/Waste | Spotted C-40 Crusher 5869 | -7/Waste | Spotted C-40 Crusher 5878 | -7/Waste | Discovered new exit (range 11) 5882 | -7/Waste | Entered Factory 5918 | -7/Factory | Identified exit to Factory 5965 | -7/Factory | Entered another Factory area 5965 | -6/Factory | Evolved 2 slots: Utility x2 5980 | -6/Factory | Lost 4 parts (1p3n) 6360 | -6/Factory | Identified exit to Lower Caves 6360 | -6/Factory | Identified exit to Factory 6377 | -6/Factory | Lost 3 parts (1p1n1u) 6399 | -6/Factory | Entered another Factory area 6399 | -5/Factory | Evolved 2 slots: Propulsion x1, Weapon x1 6557 | -5/Factory | Discovered new exit (range 12) 6637 | -5/Factory | Identified exit to Factory 6638 | -5/Factory | Entered another Factory area 6638 | -4/Factory | Evolved 2 slots: Utility x2 6694 | -4/Factory | Identified exit to Upper Caves 6694 | -4/Factory | Identified exit to Extension 6694 | -4/Factory | Identified exit to Armory 6719 | -4/Factory | Identified exit to Research 6783 | -4/Factory | Build established: Infiltrator-Mutant 6838 | -4/Factory | Entered Research 6838 | -3/Research | Evolved 2 slots: Utility x2 6934 | -3/Research | Fabricated A-02 Transporter (x1) 7041 | -3/Research | Spotted B-86 Titan 7047 | -3/Research | Spotted B-86 Titan 7061 | -3/Research | Lost 7 parts (2n2u3w) 7085 | -3/Research | Crushed by falling debris 7120 | -3/Research | Core integrity fell below 50% 7127 | -3/Research | Core integrity fell below 20% 7127 | -3/Research | System corruption reached 10% 7128 | -3/Research | Destroyed by G-67 Veteran with Plasma Rifle Last Messages --------------- 07126_ Knocked back. 07126_ Penetrated by Slug. 07126_ Fabricator disabled. 07126_ Penetrated by Slug. [Achievement: System Compromised] 07127_ Adv. Transmission Jammer destroyed. 07128_ Antimatter Diverter explodes. 07128_ P-80 Master destroyed. 07128_ H-77 Assassin destroyed. 07128_ U-05 Engineer destroyed. 07128_ P-80 Master destroyed. 07128_ U-05 Engineer destroyed. 07128_ S-43 Plague destroyed. 07128_ P-80 Master destroyed. 07128_ S-43 Plague destroyed. 07128_ U-05 Engineer destroyed. 07128_ S-43 Plague destroyed. 07128_ K-01 Serf collects debris. 07128_ Slug penetrates Fabricator. 07128_ Door malfunctions. Map ----- +----------------------------------------------------+ | ???????????????????????# ## # ! # | | ?????????############### """ ## # = # | | ?????????# ## """" ## #? # | | ?????????# ## """" ## #? " " # | | ?????????# """ """ ## """ ## #?? "R" # | | ?????????# """ """ ## ## #?? """ # | | ?????????# """ """ ## + #???###### | | ?????????# ## """ ###+##????????# | | ?????????# ## """" #?????????????# | | ?????????# """ """ ## """" #?????????????# | | ?????????# """ """ ## """ #?????????????# | | #????????# """ """ ## #?????????????# | | #####????# ## #?????????????# | | #????# #?????????????# | | ! ###########;+ ####/################## | | / A * k | | ! #+######## u!%!= g g | | ! # ?????# =| !!! wBB ^ | | # ????# =%!%=!! BBk | | ##### ???# h p![*!//g #######""########/ | | ????# #?# =!* [%%=! / # ## % | | ????# #?# p%![ != !/ # " = | | ????# ! #?# [=%%*= # " " """ ## | | ????########?# [%= # """ """ ## | | ?????????????# % k / """ """ ## | | ?????????????# @ R # """ """ ## | | ?????????????### ###"" "## R # """ """ ## | | ???????????????# ###""F""## # ## | | ???????????????####?# """ ## !# ##### | | ????????????????????######## =%# #???? | | ???????????????????????????# ==# #???? | | ???????????????????????????# # ]#???? | | ???????????????????????????# ####"#########???? | | ?????????????????########### #??###???????????? | | ?????????????????# """"" # #????????????????? | | ?????????????????# ""T"" # ^#????????????????? | | ?????????????????# # ##############???? | | ?????????????????# ! # # #???? | | ?????????????????# ! # + #???? | | ?????????????????# / # """S""" #???? | | ?????????????????# ! = # # """ """ #???? | | ?????????????????# # # #???? | | ?????????????##########+#### # #???? | | ????????????? # #???? | | ???????????? # """ """ #???? | | ???????????? + """ """ #???? | | ?????????????"" # """ """ #???? | | ?????????????"" ### # ????? | | ????????????""" ^]== ?# #] #???? | | ????????????""" ]== ?# #####+######+##??? | +----------------------------------------------------+ Best States ------------- Heat Dissipation 61 Energy Generation 24 Energy Capacity 440 Matter Stores 300 Matter Capacity 300 Sight Range 20 Robot Scan Range 16 Terrain Scan Density 10 ECM Strength 1 Jamming Range 16 Cloak Strength 3 Additional Mass Support 9 Armor Coverage 225 Point Defense Rating 80 Evasion (%) 76 Recoil Reduction 4 Kinecelleration 30 Offensive Hacking 10 Item Schematics ----------------- Flak Cannon | -9/Materials | Scanalyzed Robot Schematics ------------------ None Fabricated ------------ A-02 Transporter | x1 | -3/Research | Preloaded Repaired ---------- Imp. Treads | 29% | -8/Materials Flak Cannon | 58% | -8/Materials Flak Cannon | 70% | -8/Materials Alien Tech Used ----------------- None Achievements -------------- Backstab Can't Catch Me Cya! Dangerous Findings Dodgeball, But With Guns Fist Fight Hunted I Spy My Command Is Your Wish Part-time Excavator System Compromised Unlikely Earthworm Challenges ------------ None Game ------ Seed NetworkSlugDeconstructor Manual? 0 Play Time 03:31:30 Cumulative 12.5 hours Start 2025.07.06 @ 12:48:53 End 2025.07.06 @ 19:04:32 Sessions 3 Manual Loads 0 Difficulty Rogue Special Mode None Game No. 6 Rogue 1 Adventurer 5 Explorer 0 Win Type - Total 0 Types 0/0/0/0/0/0/0/0/0/0 Lore% 3 Gallery% 12 Achievement% 16 Wizard Run 0 Options --------- Layout 1 ASCII 0 Keyboard 0 Movement Arrows Keybinds 0 Fullscreen 1 Font 24/Smallcaps Map View 50x35 Zoom Use 0% Tactical HUD 1 Map Filters NONE Filters NONE Steam 1 RUN: 4102c884-c967-428a-a8c1-d7d8274fece5